fUSD/lending_fUSD_20260224
["ID","MTS","AMOUNT","RATE_DAILY","PERIOD"]
[406570058,1771949454797,-50000.0,0.00045546,62]
[406570059,1771949454807,-50000.0,0.00045546,63]
[406570060,1771949454816,-50000.0,0.00045546,64]
[406570061,1771949454825,-50000.0,0.00045546,65]
[406570062,1771949454836,-50000.0,0.00045546,67]
[406570063,1771949454846,-50000.0,0.00045546,68]
[406570064,1771949454856,-50000.0,0.00045546,69]
[406570065,1771949454865,-50000.0,0.00045546,70]
[406570066,1771949454875,-50000.0,0.00045546,71]
[406570067,1771949454884,-50000.0,0.00045546,72]
[406570068,1771949454896,-50000.0,0.00045546,73]
[406570069,1771949454905,-50000.0,0.00045546,74]
[406570070,1771949454915,-50000.0,0.00045546,75]
[406570071,1771949454924,-500.35,0.00045546,120]
[406570072,1771949454933,-500.35,0.00045546,120]
[406570073,1771949454943,-500.35,0.00045546,120]
[406570074,1771949454952,-500.35,0.00045546,120]
[406570075,1771949454962,-303.425468,0.00045546,120]
[406570076,1771949454971,-303.425468,0.00045546,120]
[406570077,1771949454982,-303.425468,0.00045546,120]
[406570078,1771949454991,-303.425468,0.00045546,120]
[406570079,1771949455001,-151.0,0.00045546,120]
[406570080,1771949455011,-151.0,0.00045546,120]
[406570081,1771949455020,-151.0,0.00045546,120]
[406570082,1771949455030,-151.0,0.00045546,120]
[406570083,1771949455040,-419433.36599929,0.00045547,10]
[406570084,1771949455322,-1000.0,0.00011099,2]
[406570085,1771949455346,-62108.90695859,0.00011099,2]
[406570086,1771949455355,-4847116.95617353,0.00045547,10]
[406570087,1771949455429,-395.50205511,0.00045547,10]
[406570088,1771949455963,-28074.23445369,0.00045547,10]
[406570089,1771949455975,-373.22077038,0.00045547,10]
[406570090,1771949473871,-4162.19189667,8.657e-05,2]
[406570091,1771949473898,-1675.62620666,8.657e-05,2]
[406570092,1771949484996,500.0,8.656e-05,2]
[406570093,1771949485070,500.0,8.656e-05,2]
[406570094,1771949488975,-250.0,9.089e-05,2]
[406570095,1771949509859,-250.0,9.523e-05,2]
[406570096,1771949509881,-301.58498321,9.678e-05,2]
[406570097,1771949520287,-548.41501679,0.00011099,2]
[406570098,1771949534587,-331.27045866,8.656e-05,2]
[406570099,1771949541480,500.0,8.656e-05,2]
[406570100,1771949541535,500.0,8.656e-05,2]
[406570101,1771949541612,500.0,8.656e-05,2]
[406570102,1771949541664,500.0,8.656e-05,2]
[406570103,1771949541720,500.0,8.656e-05,2]
[406570104,1771949541787,357.94253922,8.656e-05,2]
[406570105,1771949541857,500.0,8.656e-05,2]
[406570106,1771949541907,500.0,8.656e-05,2]
[406570107,1771949541962,500.0,8.656e-05,2]
[406570110,1771950161213,1162.33,5.931e-05,2]
[406570111,1771950161511,1162.33,6.139e-05,2]
[406570112,1771950161743,1162.33,6.347e-05,2]
[406570113,1771950162080,1162.33,6.555e-05,2]
[406570114,1771950162288,1162.33,6.763e-05,2]
[406570115,1771950162484,1162.33,6.971e-05,2]
[406570116,1771950162697,1162.33,7.179e-05,2]
[406570117,1771950162895,1162.33,7.388e-05,2]
[406570118,1771950163108,701.37,7.596e-05,2]
[406570119,1771950163132,460.96,7.596e-05,2]
[406570120,1771950163322,1162.33,7.804e-05,2]
[406570121,1771950163557,1162.33,8.012e-05,2]
[406570122,1771950163772,1162.33,8.22e-05,2]
[406570123,1771950163995,1162.33,8.428e-05,2]
[406570124,1771950164203,1162.33,8.636e-05,2]
[406570125,1771950164405,1162.33,8.844e-05,2]
[406570126,1771950164619,1162.33,9.052e-05,2]
[406570127,1771950164969,1162.33,9.261e-05,2]
[406570128,1771950165099,240.41,9.469e-05,2]
[406570129,1771950165125,921.92,9.469e-05,2]
[406570134,1771950359973,7980.09404417,8e-05,2]
[406570138,1771950517409,10000.01,9.253e-05,2]
[406570139,1771950517434,10000.01,9.253e-05,2]
[406570140,1771950517457,10000.01,9.253e-05,2]
[406570141,1771950517480,10000.01,9.253e-05,2]
[406570142,1771950517502,10000.01,9.253e-05,2]
[406570143,1771950517525,1086.61,9.253e-05,2]
[406570144,1771950552550,10000.01,9.233e-05,2]
[406570145,1771950552574,1558.83,9.233e-05,2]
[406570159,1771950631710,-798.32151626,9.26e-05,2]
[406570160,1771950631722,-701.67848374,9.26e-05,2]
[406570161,1771950631732,-210.15,9.338e-05,2]
[406570162,1771950631743,-969.0,9.668e-05,2]
[406570163,1771950631752,-1200.0,9.668e-05,2]
[406570164,1771950631762,-300.0,9.668e-05,2]
[406570165,1771950631772,-300.0,9.668e-05,2]
[406570166,1771950631781,-250.0,9.669e-05,2]
[406570167,1771950631791,-150.0,9.669e-05,2]
[406570168,1771950631800,-175.908954,9.669e-05,2]
[406570169,1771950631810,-201.817909,9.669e-05,2]
[406570170,1771950631820,-227.726864,9.669e-05,2]
[406570171,1771950631829,-253.635819,9.669e-05,2]
[406570172,1771950631839,-279.544774,9.669e-05,2]
[406570173,1771950631848,-305.453729,9.669e-05,2]
[406570174,1771950631858,-331.362684,9.669e-05,2]
[406570175,1771950631867,-357.271639,9.669e-05,2]
[406570176,1771950631876,-383.180594,9.669e-05,2]
[406570177,1771950631886,-1162.33,9.677e-05,2]
[406570178,1771950631895,-217.17,9.762e-05,2]
[406570179,1771950631906,-1162.33,9.885e-05,2]
[406570180,1771950631917,-150.0,9.949e-05,2]
[406570181,1771950631928,-110723.01780133,9.95e-05,2]
[406570182,1771950631940,-1000.0,9.996e-05,2]
[406570184,1771950631949,-151.0,0.0001,2]
[406570186,1771950631959,-258.42915951,0.0001,2]
[406570188,1771950631969,-151.0,0.0001,2]
[406570189,1771950631978,-275.0,0.0001,2]
[406570191,1771950631988,-275.0,0.0001,2]
[406570193,1771950631998,-1967.31764889,0.0001,2]
[406570196,1771950632008,-22874.58330761,0.0001,2]
[406570199,1771950632017,-208.0,0.00010057,2]
[406570200,1771950632027,-517.07639936,0.00010057,2]
[406570202,1771950632036,-661.35009067,0.0001009,2]
[406570204,1771950632046,-661.35009067,0.0001009,2]
[406570206,1771950632055,-337551.73012107,0.000101,2]
[406570210,1771950632085,-320.865,0.000101,2]
[406570217,1771950638936,-151.0,0.0001,2]
[406570218,1771950638946,-3199.70995216,0.00010043,2]
[406570219,1771950638994,-2096.87326438,0.00010043,2]
[406570220,1771950639005,-487.28231526,0.00010043,2]
[406570221,1771950639015,-3162127.40487893,0.000101,2]
[406570222,1771950639025,-190.02200372,0.00010143,2]
[406570223,1771950639035,-150.0,0.00010168,2]
[406570224,1771950639044,-191.142686,0.00010168,2]
[406570225,1771950639054,-232.285372,0.00010168,2]
[406570226,1771950639063,-273.428058,0.00010168,2]
[406570227,1771950639073,-314.570744,0.00010168,2]
[406570228,1771950639082,-355.71343,0.00010168,2]
[406570229,1771950639092,-396.856116,0.00010168,2]
[406570230,1771950639102,-437.998803,0.00010168,2]
[406570231,1771950639112,-479.141489,0.00010168,2]
[406570232,1771950639121,-520.284175,0.00010168,2]
[406570233,1771950639130,-4263.61,0.00010178,2]
[406570234,1771950639139,-500.0,0.000102,2]
[406570235,1771950639149,-150.99,0.000102,2]
[406570236,1771950639158,-499.99,0.000102,2]
[406570237,1771950639168,-999.99,0.000102,2]
[406570238,1771950639178,-49999.99,0.000102,2]
[406570239,1771950639187,-299.99,0.000102,2]
[406570240,1771950639197,-150.99,0.000102,2]
[406570241,1771950639206,-9999.99,0.000102,2]
[406570242,1771950639215,-9999.99,0.000102,2]
[406570243,1771950639224,-9999.99,0.000102,2]
[406570244,1771950639234,-9999.99,0.000102,2]
[406570245,1771950639243,-2500.0,0.000102,2]
[406570246,1771950639253,-500.0,0.000102,2]
[406570247,1771950639262,-1427.0,0.00010223,2]
[406570248,1771950639271,-177.0,0.00010291,2]
[406570249,1771950639280,-4296.28,0.00010299,2]
[406570250,1771950639289,-9999.99,0.00010299,2]
[406570251,1771950639298,-500.0,0.00010299,2]
[406570252,1771950639307,-500.0,0.00010299,2]
[406570253,1771950639316,-500.0,0.00010299,2]
[406570254,1771950639325,-500.0,0.00010299,2]
[406570255,1771950639335,-252.21048321,0.00010299,2]
[406570256,1771950639344,-500.0,0.00010299,2]
[406570257,1771950639353,-500.0,0.00010299,2]
[406570258,1771950639363,-500.0,0.00010299,2]
[406570259,1771950639372,-500.0,0.00010299,2]
[406570260,1771950639381,-500.0,0.00010299,2]
[406570261,1771950639391,-500.0,0.00010299,2]
[406570262,1771950639400,-3534.406,0.000103,2]
[406570263,1771950639409,-308.3,0.000103,2]
[406570281,1771950639615,-948.42,0.000103,2]
[406570282,1771950639639,-500.0,0.000103,2]
[406570283,1771950639648,-500.0,0.000103,2]
[406570284,1771950639657,-500.0,0.000103,2]
[406570285,1771950639666,-500.0,0.000103,2]
[406570286,1771950639675,-500.0,0.000103,2]
[406570287,1771950639684,-500.0,0.000103,2]
[406570288,1771950639693,-500.0,0.000103,2]
[406570289,1771950639702,-1000.0,0.000103,2]
[406570290,1771950639711,-500.0,0.000103,2]
[406570291,1771950639721,-500.0,0.000103,2]
[406570292,1771950639729,-1000.0,0.000103,2]
[406570293,1771950639738,-500.0,0.000103,2]
[406570294,1771950639747,-500.0,0.000103,2]
[406570295,1771950639757,-1000.0,0.000103,2]
[406570296,1771950639766,-500.0,0.000103,2]
[406570297,1771950639775,-500.0,0.000103,2]
[406570298,1771950639784,-500.0,0.000103,2]
[406570299,1771950639793,-500.0,0.000103,2]
[406570300,1771950639803,-500.0,0.000103,2]
[406570301,1771950639812,-500.0,0.000103,2]
[406570302,1771950639821,-1000.0,0.000103,2]
[406570303,1771950639831,-500.0,0.000103,2]
[406570304,1771950639840,-500.0,0.000103,2]
[406570305,1771950639849,-900.0,0.000103,2]
[406570306,1771950639858,-1000.0,0.000103,2]
[406570307,1771950639868,-900.0,0.000103,2]
[406570308,1771950639877,-1000.0,0.000103,2]
[406570309,1771950639887,-500.0,0.000103,2]
[406570310,1771950639896,-900.0,0.000103,2]
[406570311,1771950639906,-500.0,0.000103,2]
[406570312,1771950639915,-1000.0,0.000103,2]
[406570313,1771950639927,-900.0,0.000103,2]
[406570314,1771950639940,-500.0,0.000103,2]
[406570315,1771950639950,-1000.0,0.000103,2]
[406570316,1771950639959,-900.0,0.000103,2]
[406570317,1771950639969,-500.0,0.000103,2]
[406570318,1771950639979,-1000.0,0.000103,2]
[406570319,1771950639988,-900.0,0.000103,2]
[406570320,1771950639997,-500.0,0.000103,2]
[406570321,1771950640009,-1000.0,0.000103,2]
[406570322,1771950640020,-500.0,0.000103,2]
[406570323,1771950640030,-500.0,0.000103,2]
[406570324,1771950640039,-900.0,0.000103,2]
[406570325,1771950640050,-500.0,0.000103,2]
[406570326,1771950640060,-500.0,0.000103,2]
[406570327,1771950640069,-1000.0,0.000103,2]
[406570328,1771950640079,-500.0,0.000103,2]
[406570329,1771950640089,-500.0,0.000103,2]
[406570330,1771950640099,-500.0,0.000103,2]
[406570331,1771950640109,-500.0,0.000103,2]
[406570332,1771950640120,-1000.0,0.000103,2]
[406570333,1771950640131,-900.0,0.000103,2]
[406570334,1771950640142,-500.0,0.000103,2]
[406570335,1771950640151,-500.0,0.000103,2]
[406570336,1771950640161,-500.0,0.000103,2]
[406570337,1771950640170,-900.0,0.000103,2]
[406570338,1771950640179,-1000.0,0.000103,2]
[406570339,1771950640189,-500.0,0.000103,2]
[406570340,1771950640198,-500.0,0.000103,2]
[406570341,1771950640207,-500.0,0.000103,2]
[406570342,1771950640216,-1500.0,0.000103,2]
[406570343,1771950640225,-900.0,0.000103,2]
[406570344,1771950640235,-500.0,0.000103,2]
[406570345,1771950640245,-500.0,0.000103,2]
[406570346,1771950640254,-900.0,0.000103,2]
[406570347,1771950640263,-500.0,0.000103,2]
[406570348,1771950640276,-500.0,0.000103,2]
[406570349,1771950640286,-500.0,0.000103,2]
[406570350,1771950640296,-500.0,0.000103,2]
[406570351,1771950640306,-500.0,0.000103,2]
[406570352,1771950640316,-500.0,0.000103,2]
[406570353,1771950640325,-900.0,0.000103,2]
[406570354,1771950640334,-500.0,0.000103,2]
[406570355,1771950640343,-500.0,0.000103,2]
[406570356,1771950640352,-500.0,0.000103,2]
[406570357,1771950640362,-900.0,0.000103,2]
[406570358,1771950640371,-2600.0,0.000103,2]
[406570359,1771950640380,-500.0,0.000103,2]
[406570360,1771950640389,-500.0,0.000103,2]
[406570361,1771950640397,-500.0,0.000103,2]
[406570362,1771950640406,-1200.0,0.000103,2]
[406570363,1771950640417,-2600.0,0.000103,2]
[406570364,1771950640427,-500.0,0.000103,2]
[406570365,1771950640437,-500.0,0.000103,2]
[406570366,1771950640446,-500.0,0.000103,2]
[406570367,1771950640455,-2600.0,0.000103,2]
[406570368,1771950640465,-500.0,0.000103,2]
[406570369,1771950640474,-500.0,0.000103,2]
[406570370,1771950640483,-500.0,0.000103,2]
[406570371,1771950640493,-500.0,0.000103,2]
[406570372,1771950640506,-2600.0,0.000103,2]
[406570373,1771950640516,-500.0,0.000103,2]
[406570374,1771950640525,-500.0,0.000103,2]
[406570375,1771950640535,-500.0,0.000103,2]
[406570376,1771950640544,-500.0,0.000103,2]
[406570377,1771950640553,-2600.0,0.000103,2]
[406570378,1771950640563,-500.0,0.000103,2]
[406570379,1771950640572,-500.0,0.000103,2]
[406570380,1771950640581,-500.0,0.000103,2]
[406570381,1771950640591,-500.0,0.000103,2]
[406570383,1771950640601,-2600.0,0.000103,2]
[406570384,1771950640610,-600.0,0.000103,2]
[406570385,1771950640620,-500.0,0.000103,2]
[406570386,1771950640630,-2600.0,0.000103,2]
[406570387,1771950640639,-500.0,0.000103,2]
[406570388,1771950640649,-2600.0,0.000103,2]
[406570389,1771950640658,-500.0,0.000103,2]
[406570390,1771950640668,-500.0,0.000103,2]
[406570391,1771950640677,-500.0,0.000103,2]
[406570392,1771950640688,-500.0,0.000103,2]
[406570393,1771950640699,-2600.0,0.000103,2]
[406570394,1771950640709,-500.0,0.000103,2]
[406570395,1771950640718,-500.0,0.000103,2]
[406570396,1771950640728,-2600.0,0.000103,2]
[406570397,1771950640738,-500.0,0.000103,2]
[406570398,1771950640748,-2600.0,0.000103,2]
[406570399,1771950640761,-500.0,0.000103,2]
[406570400,1771950640771,-2600.0,0.000103,2]
[406570401,1771950640780,-500.0,0.000103,2]
[406570402,1771950640789,-2600.0,0.000103,2]
[406570403,1771950640801,-500.0,0.000103,2]
[406570404,1771950640810,-3700.0,0.000103,2]
[406570405,1771950640820,-500.0,0.000103,2]
[406570406,1771950640830,-500.0,0.000103,2]
[406570407,1771950640840,-971.18053332,0.000103,2]
[406570408,1771950640850,-1000.0,0.000103,2]
[406570409,1771950640860,-973.37124608,0.000103,2]
[406570410,1771950640869,-500.0,0.000103,2]
[406570411,1771950640878,-500.0,0.000103,2]
[406570412,1771950640887,-1000.0,0.000103,2]
[406570413,1771950640897,-500.0,0.000103,2]
[406570414,1771950640906,-500.0,0.000103,2]
[406570415,1771950640915,-1000.0,0.000103,2]
[406570416,1771950640929,-500.0,0.000103,2]
[406570417,1771950640940,-500.0,0.000103,2]
[406570418,1771950640952,-1000.0,0.000103,2]
[406570419,1771950640961,-500.0,0.000103,2]
[406570420,1771950640970,-500.0,0.000103,2]
[406570421,1771950640980,-1000.0,0.000103,2]
[406570422,1771950640989,-500.0,0.000103,2]
[406570423,1771950640999,-500.0,0.000103,2]
[406570424,1771950641011,-500.0,0.000103,2]
[406570425,1771950641021,-1000.0,0.000103,2]
[406570426,1771950641031,-500.0,0.000103,2]
[406570427,1771950641041,-1000.0,0.000103,2]
[406570428,1771950641050,-500.0,0.000103,2]
[406570429,1771950641060,-500.0,0.000103,2]
[406570430,1771950641070,-500.0,0.000103,2]
[406570431,1771950641079,-1000.0,0.000103,2]
[406570432,1771950641089,-500.0,0.000103,2]
[406570433,1771950641099,-898.53555328,0.000103,2]
[406570434,1771950641108,-500.0,0.000103,2]
[406570435,1771950641117,-1000.0,0.000103,2]
[406570436,1771950641127,-500.0,0.000103,2]
[406570437,1771950641136,-500.0,0.000103,2]
[406570438,1771950641145,-1000.0,0.000103,2]
[406570439,1771950641155,-507.15371826,0.000103,2]
[406570440,1771950641164,-500.0,0.000103,2]
[406570441,1771950641173,-1000.0,0.000103,2]
[406570442,1771950641183,-500.0,0.000103,2]
[406570443,1771950641192,-1000.0,0.000103,2]
[406570444,1771950641202,-500.0,0.000103,2]
[406570445,1771950641211,-500.0,0.000103,2]
[406570446,1771950641220,-1000.0,0.000103,2]
[406570447,1771950641230,-1100.0,0.000103,2]
[406570448,1771950641239,-500.0,0.000103,2]
[406570449,1771950641248,-889.98959999,0.000103,2]
[406570450,1771950641259,-1297.61692945,0.000103,2]
[406570451,1771950641268,-1100.0,0.000103,2]
[406570452,1771950641278,-500.0,0.000103,2]
[406570453,1771950641287,-1100.0,0.000103,2]
[406570454,1771950641296,-2600.0,0.000103,2]
[406570455,1771950641305,-500.0,0.000103,2]
[406570456,1771950641314,-1100.0,0.000103,2]
[406570457,1771950641323,-500.0,0.000103,2]
[406570458,1771950641333,-1100.0,0.000103,2]
[406570459,1771950641342,-500.0,0.000103,2]
[406570460,1771950641351,-823.91748752,0.000103,2]
[406570461,1771950641360,-500.0,0.000103,2]
[406570462,1771950641370,-1100.0,0.000103,2]
[406570463,1771950641380,-2600.0,0.000103,2]
[406570464,1771950641389,-500.0,0.000103,2]
[406570465,1771950641398,-500.0,0.000103,2]
[406570466,1771950641408,-500.0,0.000103,2]
[406570467,1771950641418,-1100.0,0.000103,2]
[406570468,1771950641427,-2600.0,0.000103,2]
[406570469,1771950641438,-500.0,0.000103,2]
[406570470,1771950641447,-500.0,0.000103,2]
[406570471,1771950641455,-870.452302,0.000103,2]
[406570472,1771950641465,-1100.0,0.000103,2]
[406570473,1771950641474,-2600.0,0.000103,2]
[406570474,1771950641484,-500.0,0.000103,2]
[406570475,1771950641493,-500.0,0.000103,2]
[406570476,1771950641503,-1100.0,0.000103,2]
[406570477,1771950641513,-2600.0,0.000103,2]
[406570478,1771950641523,-500.0,0.000103,2]
[406570479,1771950641533,-500.0,0.000103,2]
[406570480,1771950641542,-500.0,0.000103,2]
[406570481,1771950641551,-1100.0,0.000103,2]
[406570482,1771950641560,-2600.0,0.000103,2]
[406570483,1771950641570,-500.0,0.000103,2]
[406570484,1771950641579,-500.0,0.000103,2]
[406570485,1771950641588,-500.0,0.000103,2]
[406570486,1771950641597,-1100.0,0.000103,2]
[406570487,1771950641606,-2600.0,0.000103,2]
[406570488,1771950641616,-500.0,0.000103,2]
[406570489,1771950641624,-500.0,0.000103,2]
[406570490,1771950641634,-500.0,0.000103,2]
[406570491,1771950641643,-1100.0,0.000103,2]
[406570492,1771950641653,-634.81474599,0.000103,2]
[406570493,1771950641663,-2600.0,0.000103,2]
[406570494,1771950641672,-500.0,0.000103,2]
[406570495,1771950641682,-500.0,0.000103,2]
[406570496,1771950641692,-1802.88356028,0.000103,2]
[406570497,1771950641701,-2600.0,0.000103,2]
[406570498,1771950641710,-500.0,0.000103,2]
[406570499,1771950641720,-500.0,0.000103,2]
[406570500,1771950641729,-2600.0,0.000103,2]
[406570501,1771950641738,-500.0,0.000103,2]
[406570502,1771950641747,-2600.0,0.000103,2]
[406570503,1771950641757,-500.0,0.000103,2]
[406570504,1771950641766,-600.0,0.000103,2]
[406570505,1771950641775,-504.37882443,0.000103,2]
[406570506,1771950641784,-2600.0,0.000103,2]
[406570507,1771950641793,-813.93433051,0.000103,2]
[406570508,1771950641802,-600.0,0.000103,2]
[406570509,1771950641812,-2600.0,0.000103,2]
[406570510,1771950641821,-600.0,0.000103,2]
[406570511,1771950641830,-600.0,0.000103,2]
[406570512,1771950641839,-3267.50083557,0.000103,2]
[406570513,1771950641849,-600.0,0.000103,2]
[406570514,1771950641857,-600.0,0.000103,2]
[406570515,1771950641867,-600.0,0.000103,2]
[406570516,1771950641875,-600.0,0.000103,2]
[406570517,1771950641885,-600.0,0.000103,2]
[406570518,1771950641894,-600.0,0.000103,2]
[406570519,1771950641903,-600.0,0.000103,2]
[406570520,1771950641912,-600.0,0.000103,2]
[406570521,1771950641921,-961.00917083,0.000103,2]
[406570522,1771950641931,-500.0,0.000103,2]
[406570523,1771950641944,-275.60272737,0.0001031,2]
[406570524,1771950641953,-474.0,0.00010311,2]
[406570525,1771950641962,-299.0,0.00010332,2]
[406570526,1771950641971,-1029.0,0.00010333,2]
[406570527,1771950641983,-4352.77,0.00010445,2]
[406570528,1771950641992,-293.057876,0.00010448,2]
[406570529,1771950642003,-150.0,0.00010466,2]
[406570530,1771950642013,-246.9997,0.00010466,2]
[406570531,1771950642022,-343.999401,0.00010466,2]
[406570532,1771950642031,-440.999102,0.00010466,2]
[406570533,1771950642040,-537.998802,0.00010466,2]
[406570534,1771950642050,-634.998503,0.00010466,2]
[406570535,1771950642059,-731.998204,0.00010466,2]
[406570536,1771950642068,-828.997905,0.00010466,2]
[406570537,1771950642078,-925.997605,0.00010466,2]
[406570538,1771950642087,-1022.997306,0.00010466,2]
[406570539,1771950642096,-500.0,0.00010474,2]
[406570540,1771950642105,-500.0,0.00010573,2]
[406570541,1771950642115,-500.0,0.00010573,2]
[406570542,1771950642124,-500.0,0.00010573,2]
[406570543,1771950642134,-500.0,0.00010573,2]
[406570544,1771950642143,-500.0,0.00010573,2]
[406570545,1771950642152,-500.0,0.00010573,2]
[406570546,1771950642161,-500.0,0.00010573,2]
[406570547,1771950642171,-156.77334247,0.00010573,2]
[406570548,1771950642180,-500.0,0.00010573,2]
[406570549,1771950642189,-500.0,0.00010573,2]
[406570550,1771950642198,-500.0,0.00010573,2]
[406570551,1771950642208,-500.0,0.00010573,2]
[406570552,1771950642217,-500.0,0.00010573,2]
[406570553,1771950642227,-500.0,0.00010573,2]
[406570554,1771950642236,-948.42,0.00010574,2]
[406570555,1771950642246,-250.0,0.00010635,2]
[406570556,1771950642256,-1680.0,0.00010635,2]
[406570557,1771950642265,-250.0,0.00010636,2]
[406570558,1771950642274,-958.4005675,0.00010748,2]
[406570559,1771950642284,-500.0,0.00010748,2]
[406570560,1771950642293,-2020.25967895,0.000108,2]
[406570561,1771950642302,-8254.45860882,0.000108,2]
[406570562,1771950642311,-3890.51935794,0.000108,2]
[406570563,1771950642321,-9501.29839479,0.000108,2]
[406570564,1771950642330,-5137.35914388,0.000108,2]
[406570565,1771950642339,-151.0,0.00010809,2]
[406570566,1771950642348,-151.0,0.00010809,2]
[406570567,1771950642358,-151.0,0.00010809,2]
[406570568,1771950642367,-151.0,0.00010809,2]
[406570569,1771950642376,-151.0,0.00010809,2]
[406570570,1771950642385,-151.0,0.00010809,2]
[406570571,1771950642395,-151.0,0.00010809,2]
[406570572,1771950642404,-151.0,0.00010809,2]
[406570573,1771950642413,-151.0,0.00010809,2]
[406570574,1771950642422,-151.0,0.00010809,2]
[406570575,1771950642431,-151.0,0.00010809,2]
[406570576,1771950642441,-151.0,0.00010809,2]
[406570577,1771950642450,-151.0,0.00010809,2]
[406570578,1771950642459,-151.0,0.00010809,2]
[406570579,1771950642468,-151.0,0.00010809,2]
[406570581,1771950642477,-151.0,0.00010809,2]
[406570583,1771950642486,-151.0,0.00010809,2]
[406570584,1771950642494,-151.0,0.00010809,2]
[406570585,1771950642503,-151.0,0.00010809,2]
[406570586,1771950642512,-151.0,0.00010809,2]
[406570587,1771950642521,-151.0,0.00010809,2]
[406570588,1771950642530,-151.0,0.00010809,2]
[406570589,1771950642539,-151.0,0.00010809,2]
[406570590,1771950642549,-151.0,0.00010809,2]
[406570591,1771950642558,-151.0,0.00010809,2]
[406570592,1771950642567,-151.0,0.00010809,2]
[406570593,1771950642576,-151.0,0.00010809,2]
[406570594,1771950642586,-151.0,0.00010809,2]
[406570595,1771950642595,-151.0,0.00010809,2]
[406570596,1771950642604,-151.0,0.00010809,2]
[406570597,1771950642614,-151.0,0.00010809,2]
[406570598,1771950642623,-151.0,0.00010809,2]
[406570599,1771950642632,-151.0,0.00010809,2]
[406570600,1771950642641,-151.0,0.00010809,2]
[406570601,1771950642651,-151.0,0.00010809,2]
[406570602,1771950642660,-151.0,0.00010809,2]
[406570603,1771950642670,-151.0,0.00010809,2]
[406570604,1771950642680,-151.0,0.00010809,2]
[406570605,1771950642689,-151.0,0.00010809,2]
[406570606,1771950642698,-151.0,0.00010809,2]
[406570607,1771950642708,-181.89196788,0.00010815,2]
[406570608,1771950642717,-231.88932106,0.00010815,2]
[406570609,1771950642727,-500.0,0.00010815,2]
[406570610,1771950642738,-370.05813237,0.00010815,2]
[406570611,1771950642749,-500.0,0.00010815,2]
[406570612,1771950642763,-948.42,0.00010848,2]
[406570613,1771950642773,-4800.443482,0.000109,2]
[406570614,1771950642783,-255.0,0.00010944,2]
[406570615,1771950642793,-150.0,0.00010959,2]
[406570616,1771950642803,-83659.2068,0.00010999,2]
[406570617,1771950642812,-500.0,0.00011022,2]
[406570618,1771950642821,-56743.17476112,0.00011099,2]
[406570619,1771950642831,-56743.17476105,0.00011099,2]
[406570620,1771950642840,-1000.0,0.00011121,2]